bitfinex/quotes_BTCUSD_20241206
["timestamp","ask_amount","ask_price","bid_price","bid_amount"]
[1733493194147,0.41746745,98605.0,98590.0,0.20286]
[1733493194349,0.0791,98628.0,98591.0,0.00101415]
[1733493194350,0.05,98613.0,98591.0,0.00101415]
[1733493194555,0.202827,98606.0,98592.0,0.00101414]
[1733493194763,0.003,98598.0,98592.0,0.202856]
[1733493194971,0.003,98598.0,98588.0,0.202864]
[1733493195175,0.25340635,98607.0,98579.0,0.0832]
[1733493195176,0.00057935,98607.0,98593.0,0.00101416]
[1733493195404,0.00057935,98607.0,98582.0,0.202876]
[1733493195405,0.0010144,98606.0,98588.0,0.202862]
[1733493195626,0.202829,98605.0,98589.0,0.00101418]
[1733493195836,0.202829,98605.0,98589.0,0.20387618]
[1733493196039,0.002,98606.0,98590.0,0.20286]
[1733493196259,0.002,98606.0,98603.0,0.202833]
[1733493196481,0.00057935,98607.0,98603.0,0.202833]
[1733493196690,0.002,98606.0,98603.0,0.405666]
[1733493197344,0.003,98605.0,98603.0,0.405666]
[1733493197773,0.002,98606.0,98604.0,0.00101407]
[1733493197983,0.00057935,98607.0,98606.0,0.0833]
[1733493198226,0.00057935,98607.0,98606.0,0.43564531]
[1733493198468,0.05,98645.0,98629.0,0.20278]
[1733493200453,0.0018661,98630.0,98629.0,0.20278]
[1733493201544,0.0018661,98630.0,98629.0,0.20788816]
[1733493201759,0.0018661,98630.0,98629.0,0.00510816]
[1733493202229,0.0018661,98630.0,98606.0,0.23521089]
[1733493202230,0.0018661,98630.0,98626.0,0.405568]
[1733493202499,0.0018661,98630.0,98629.0,0.25503154]
[1733493202695,0.0008658,98660.0,98659.0,0.202718]
[1733493203111,0.0008658,98660.0,98659.0,0.2077417]
[1733493203551,0.0008658,98660.0,98659.0,0.0050237]
[1733493203976,0.0008658,98660.0,98655.0,0.202726]
[1733493204188,0.0008658,98660.0,98647.0,0.202741]
[1733493204189,0.0008658,98660.0,98659.0,0.00519759]
[1733493204394,0.0018658,98660.0,98659.0,0.00017389]
[1733493204830,0.0008658,98660.0,98659.0,0.00017389]
[1733493205456,0.0008658,98660.0,98659.0,0.00519759]
[1733493205670,0.0008658,98660.0,98659.0,0.00017389]
[1733493205871,0.0008658,98660.0,98659.0,0.00519759]
[1733493206082,0.0018658,98660.0,98659.0,0.00517389]
[1733493206287,0.0008658,98660.0,98659.0,0.00519759]
[1733493206707,0.0028658,98660.0,98659.0,0.00017389]
[1733493206915,0.0008658,98660.0,98659.0,0.00017389]
[1733493207334,0.0018658,98660.0,98659.0,0.00517389]
[1733493207551,0.0008658,98660.0,98659.0,0.00217389]
[1733493207970,0.0008658,98660.0,98659.0,0.00417389]
[1733493208845,0.38551174,98660.0,98659.0,0.00217389]
[1733493209058,0.38449734,98660.0,98659.0,0.00217389]
[1733493209281,0.40749734,98660.0,98659.0,0.00017389]
[1733493209568,0.40749734,98660.0,98659.0,0.00417389]
[1733493209780,0.40749734,98660.0,98659.0,0.00017389]
[1733493210225,0.40749734,98660.0,98659.0,0.00117389]
[1733493210226,0.41649734,98660.0,98659.0,0.00117389]
[1733493210448,0.52139226,98660.0,98659.0,0.00017389]
[1733493210659,0.52139226,98660.0,98659.0,0.00117389]
[1733493210660,0.41649734,98660.0,98659.0,0.00117389]
[1733493210868,0.42849734,98660.0,98659.0,0.00117389]
[1733493211307,0.42549734,98660.0,98659.0,0.00117389]
[1733493211525,0.173,98659.0,98598.0,0.08900689]
[1733493211737,0.173,98659.0,98599.0,0.00101398]
[1733493211738,0.05,98626.0,98599.0,0.00101398]
[1733493211942,0.05,98624.0,98606.0,0.202826]
[1733493212159,0.202803,98618.0,98602.0,0.202834]
[1733493212379,0.202812,98614.0,98598.0,0.00057935]
[1733493212595,0.10503154,98638.0,98598.0,0.00057935]
[1733493212596,0.202826,98607.0,98598.0,0.00057935]
[1733493212799,0.05,98612.0,98598.0,0.00057935]
[1733493212800,0.202817,98611.0,98598.0,0.00057935]
[1733493213426,0.202826,98607.0,98598.0,0.00057935]
[1733493213637,0.202825,98607.0,98598.0,0.00057935]
[1733493213880,0.252825,98607.0,98606.0,0.005]
[1733493214079,0.252825,98607.0,98598.0,0.00057935]
[1733493214080,0.20284,98600.0,98598.0,0.00057935]
[1733493214504,0.25284,98600.0,98598.0,0.00057935]
[1733493214765,0.30503154,98599.0,98598.0,0.00057935]
[1733493214985,0.28503154,98599.0,98598.0,0.00057935]
[1733493216182,0.28603154,98599.0,98598.0,0.00057935]
[1733493216430,0.28503154,98599.0,98598.0,0.00057935]
[1733493216906,0.28603154,98599.0,98598.0,0.00057935]
[1733493217480,0.10603154,98599.0,98598.0,0.00057935]
[1733493217708,0.001,98599.0,98598.0,0.00057935]
[1733493218390,0.0320144,98599.0,98598.0,0.00057935]
[1733493218619,0.13604594,98599.0,98598.0,0.00057935]
[1733493218842,0.28704594,98599.0,98598.0,0.00057935]
[1733493219086,0.28603154,98599.0,98598.0,0.00057935]
[1733493219339,0.28503154,98599.0,98598.0,0.00057935]
[1733493219567,0.28603154,98599.0,98598.0,0.00057935]
[1733493219802,0.28503154,98599.0,98598.0,0.00057935]
[1733493220046,0.28603154,98599.0,98598.0,0.00057935]
[1733493220264,0.28503154,98599.0,98598.0,0.00057935]
[1733493221704,0.13503154,98599.0,98598.0,0.00057935]
[1733493221958,0.13604594,98599.0,98598.0,0.00057935]
[1733493222225,0.13503154,98599.0,98598.0,0.00057935]
[1733493223164,0.28604594,98599.0,98598.0,0.00057935]
[1733493223396,0.35420313,98599.0,98598.0,0.00057935]
[1733493223663,0.36453154,98599.0,98598.0,0.00057935]
[1733493224421,0.37266425,98599.0,98598.0,0.00057935]
[1733493224682,0.39566425,98599.0,98598.0,0.00057935]
[1733493225163,0.38753154,98599.0,98598.0,0.00057935]
[1733493225492,0.28503154,98599.0,98598.0,0.00057935]
[1733493226138,0.29403154,98599.0,98598.0,0.00057935]
[1733493226369,0.28503154,98599.0,98598.0,0.00057935]
[1733493226590,0.29603154,98599.0,98598.0,0.00057935]
[1733493227054,0.29103154,98599.0,98598.0,0.00057935]
[1733493227310,0.14103154,98599.0,98598.0,0.00057935]
[1733493227558,0.009,98599.0,98598.0,0.00057935]
[1733493228044,0.41796745,98603.0,98598.0,0.00057935]
[1733493228290,0.41796745,98603.0,98599.0,0.202841]
[1733493228526,0.41796745,98603.0,98598.0,0.00057935]
[1733493229219,0.001,98599.0,98598.0,0.00057935]
[1733493229440,0.41796745,98603.0,98598.0,0.00057935]
[1733493229658,0.42096745,98603.0,98599.0,0.202841]
[1733493230097,0.42096745,98603.0,98598.0,0.00057935]
[1733493231040,0.42196745,98603.0,98599.0,0.202841]
[1733493231276,0.37196745,98603.0,98599.0,0.405682]
[1733493231502,0.003,98603.0,98599.0,0.405682]
[1733493231718,0.232819,98610.0,98599.0,0.202841]
[1733493231937,0.03,98627.0,98600.0,0.00101414]
[1733493232157,0.0458,98646.0,98601.0,0.18373154]
[1733493232158,0.003,98603.0,98601.0,0.18373154]
[1733493232442,0.36746745,98633.0,98601.0,0.18373154]
[1733493232443,0.202803,98618.0,98601.0,0.18373154]
[1733493232624,0.03,98628.0,98602.0,0.00567952]
[1733493232847,0.03,98628.0,98602.0,0.11071106]
[1733493233275,0.001,98603.0,98602.0,0.31354606]
[1733493233488,0.001,98603.0,98602.0,0.31253209]
[1733493233908,0.03,98628.0,98617.0,0.202804]
[1733493234123,0.032,98628.0,98617.0,0.202804]
[1733493234555,0.202784,98627.0,98618.0,0.00465392]
[1733493234779,0.03,98628.0,98618.0,0.00465392]
[1733493235021,0.03,98628.0,98623.0,0.202791]
[1733493235231,0.03,98628.0,98619.0,0.00465319]
[1733493235443,0.033,98628.0,98624.0,0.00464956]
[1733493235688,0.0008663,98630.0,98603.0,0.00101394]
[1733493235902,0.0008663,98630.0,98627.0,0.405566]
[1733493236127,0.0008663,98630.0,98629.0,0.20278]
[1733493236572,0.0008663,98630.0,98629.0,0.20740718]
[1733493237493,0.0008663,98630.0,98629.0,0.20758108]
[1733493237743,0.0018663,98630.0,98629.0,0.31361262]
[1733493237956,0.0018663,98630.0,98629.0,0.53271262]
[1733493238168,0.0008663,98630.0,98629.0,0.53171262]
[1733493238383,0.0008663,98630.0,98629.0,0.53271262]
[1733493238384,0.0018663,98630.0,98629.0,0.53271262]
[1733493238595,0.0028663,98630.0,98629.0,0.54091589]
[1733493239019,0.0018663,98630.0,98629.0,0.54091589]
[1733493239233,0.0028663,98630.0,98629.0,0.54091589]
[1733493239462,0.0028663,98630.0,98629.0,0.21678435]
[1733493240149,0.0028663,98630.0,98629.0,0.20858108]
[1733493241192,0.0018663,98630.0,98629.0,0.20758108]
[1733493241434,0.0008663,98630.0,98629.0,0.20758108]
[1733493241652,0.0008663,98630.0,98629.0,0.21058108]
[1733493241864,0.0018663,98630.0,98629.0,0.21058108]
[1733493242088,0.0008663,98630.0,98629.0,0.00480108]
[1733493242305,0.0308663,98630.0,98629.0,0.00480108]
[1733493242527,0.0308663,98630.0,98629.0,0.0001739]
[1733493242528,0.0318663,98630.0,98629.0,0.0001739]
[1733493242772,0.0018663,98630.0,98629.0,0.0001739]
[1733493242986,0.0018663,98630.0,98629.0,0.00470856]
[1733493243203,0.0008663,98630.0,98629.0,0.0001739]
[1733493243419,0.0018663,98630.0,98629.0,0.00870869]
[1733493243853,0.0018663,98630.0,98629.0,0.0041739]
[1733493244298,0.0018663,98630.0,98629.0,0.0001739]
[1733493244754,0.0018663,98630.0,98629.0,0.0041739]
[1733493244971,0.0008663,98630.0,98629.0,0.0041739]
[1733493245190,0.0018663,98630.0,98629.0,0.0001739]
[1733493245404,0.0008663,98630.0,98629.0,0.0001739]
[1733493245831,0.0018663,98630.0,98629.0,0.00573684]
[1733493246049,0.0018663,98630.0,98629.0,0.00118769]
[1733493246264,0.0018663,98630.0,98629.0,0.00573684]
[1733493246480,0.0018663,98630.0,98629.0,0.18121923]
[1733493246722,0.0018663,98630.0,98629.0,0.18976838]
[1733493247358,0.03,98653.0,98630.0,0.608334]
[1733493247568,0.03,98653.0,98631.0,0.00101367]
[1733493247786,0.03,98653.0,98633.0,0.202771]
[1733493248057,0.03,98653.0,98646.0,0.202743]
[1733493248482,0.032,98653.0,98647.0,0.00450877]
[1733493248925,0.035,98653.0,98647.0,0.00450877]
[1733493249141,0.032,98653.0,98647.0,0.00450877]
[1733493249346,0.035,98653.0,98640.0,0.202755]
[1733493249554,0.035,98653.0,98644.0,0.202748]
[1733493249773,0.032,98653.0,98644.0,0.202748]
[1733493249996,0.03,98653.0,98645.0,0.00451022]
[1733493250210,0.032,98653.0,98650.0,0.202734]
[1733493250425,0.032,98653.0,98645.0,0.00451022]
[1733493250640,0.03,98653.0,98651.0,0.00450586]
[1733493250856,0.03,98653.0,98647.0,0.202742]
[1733493251073,0.202724,98656.0,98652.0,0.00450514]
[1733493251298,0.202724,98656.0,98642.0,0.202752]
[1733493251299,0.03,98653.0,98642.0,0.202752]
[1733493251522,0.202732,98652.0,98642.0,0.202752]
[1733493251736,0.202732,98652.0,98643.0,0.00451168]
[1733493252165,0.031,98653.0,98629.0,0.38298344]
[1733493252166,0.033,98653.0,98651.0,0.202733]
[1733493252383,0.003,98653.0,98651.0,0.202733]
[1733493252612,0.001,98653.0,98652.0,0.00551866]
[1733493253912,0.0008658,98660.0,98659.0,0.202718]
[1733493254390,0.0008658,98660.0,98659.0,0.20722539]
[1733493255047,0.0018658,98660.0,98659.0,0.20722539]
[1733493255264,0.0018658,98660.0,98659.0,0.20739929]
[1733493255910,0.0018658,98660.0,98659.0,0.20939929]
[1733493256774,0.0018658,98660.0,98659.0,0.00668129]
[1733493257428,0.0008658,98660.0,98659.0,0.00468129]
[1733493257866,0.0018658,98660.0,98659.0,0.0021739]
[1733493258085,0.0008658,98660.0,98659.0,0.0021739]
[1733493258300,0.0018658,98660.0,98659.0,0.0001739]
[1733493258513,0.0018658,98660.0,98659.0,0.2028919]
[1733493258721,0.0008658,98660.0,98659.0,0.20739929]
[1733493258944,0.0018658,98660.0,98659.0,0.20939929]
[1733493259166,0.0008658,98660.0,98659.0,0.20939929]
[1733493260487,0.0008658,98660.0,98659.0,0.20739929]
[1733493260948,0.0008658,98660.0,98659.0,0.20839929]
[1733493261374,0.0008658,98660.0,98659.0,0.20739929]
[1733493261596,0.0008658,98660.0,98659.0,0.20839929]
[1733493263361,0.36746745,98671.0,98670.0,0.202695]
[1733493263571,0.03,98682.0,98659.0,0.32095155]
[1733493263783,0.03,98682.0,98677.0,0.202679]
[1733493263989,0.03,98682.0,98659.0,0.31644416]
[1733493263990,0.03,98682.0,98659.0,0.31944416]
[1733493264244,0.232667,98684.0,98678.0,0.00446175]
[1733493264473,0.03,98681.0,98671.0,0.202693]
[1733493264684,0.03,98681.0,98676.0,0.202683]
[1733493264932,0.03,98681.0,98671.0,0.202693]
[1733493264933,0.03,98681.0,98672.0,0.00446611]
[1733493265170,0.03,98681.0,98677.0,0.00446247]
[1733493265412,0.03,98681.0,98675.0,0.202684]
[1733493265619,0.03,98681.0,98674.0,0.202686]
[1733493265812,0.031,98681.0,98676.0,0.0044632]
[1733493266033,0.031,98681.0,98676.0,0.202683]
[1733493266263,0.031,98681.0,98677.0,0.00446247]
[1733493266695,0.031,98681.0,98671.0,0.202693]
[1733493266905,0.031,98681.0,98678.0,0.00446175]
[1733493267186,0.03,98681.0,98674.0,0.202685]
[1733493267594,0.031,98681.0,98674.0,0.202685]
[1733493267814,0.03,98681.0,98674.0,0.202685]
[1733493268020,0.031,98681.0,98674.0,0.202685]
[1733493268451,0.001,98681.0,98678.0,0.202679]
[1733493268667,0.002,98681.0,98678.0,0.405358]
[1733493268875,0.002,98681.0,98680.0,0.202675]
[1733493269098,0.001,98681.0,98680.0,0.202675]
[1733493269312,0.002,98681.0,98680.0,0.2071353]
[1733493270241,0.001,98681.0,98680.0,0.2071353]
[1733493270696,0.002,98681.0,98680.0,0.2071353]
[1733493270925,0.0008648,98690.0,98684.0,0.202666]
[1733493271374,0.0008648,98690.0,98686.0,0.202662]
[1733493271637,0.00018372,98690.0,98686.0,0.405324]
[1733493271867,0.00018372,98690.0,98688.0,0.202658]
[1733493272129,0.00018372,98690.0,98689.0,0.00101317]
[1733493272370,0.00018372,98690.0,98689.0,0.00765477]
[1733493273388,0.00018372,98690.0,98689.0,0.00782867]
[1733493274343,0.00018372,98690.0,98689.0,0.11286021]
[1733493274563,0.00018372,98690.0,98689.0,0.11086021]
[1733493274809,0.00118372,98690.0,98689.0,0.11020544]
[1733493275303,0.0008668,98710.0,98690.0,0.202654]
[1733493275541,0.001,98690.0,98689.0,0.2078299]
[1733493275770,0.001,98690.0,98689.0,0.30986144]
[1733493275958,0.001,98690.0,98689.0,0.33326221]
[1733493276437,0.001,98690.0,98689.0,0.31286144]
[1733493276913,0.001,98690.0,98689.0,0.2078299]
[1733493277153,0.0485,98706.0,98696.0,0.202642]
[1733493277414,0.0485,98706.0,98700.0,0.202633]
[1733493277862,0.03,98705.0,98693.0,0.202647]
[1733493278512,0.202633,98701.0,98689.0,0.2098299]
[1733493278780,0.03,98696.0,98689.0,0.0001739]
[1733493279736,0.03,98696.0,98690.0,0.202654]
[1733493279951,0.435289,98695.0,98689.0,0.0001739]
[1733493280175,0.232644,98695.0,98689.0,0.0001739]
[1733493280393,0.03,98695.0,98689.0,0.0001739]
[1733493280619,0.202648,98693.0,98689.0,0.0001739]
[1733493280836,0.232654,98690.0,98689.0,0.0041739]
[1733493281082,0.232654,98690.0,98689.0,0.0011739]
[1733493281331,0.03,98690.0,98689.0,0.0051739]
[1733493281584,0.03,98690.0,98689.0,0.0041739]
[1733493281848,0.36599821,98690.0,98689.0,0.0021739]
[1733493282068,0.36473154,98690.0,98689.0,0.0021739]
[1733493282315,0.36473154,98690.0,98689.0,0.0001739]
[1733493282792,0.36673154,98690.0,98689.0,0.0001739]
[1733493283017,0.37623358,98690.0,98689.0,0.0041739]
[1733493283494,0.37523358,98690.0,98689.0,0.0001739]
[1733493284185,0.38223358,98690.0,98689.0,0.0001739]
[1733493284647,0.38723358,98690.0,98689.0,0.0011739]
[1733493285626,0.38723358,98690.0,98689.0,0.0001739]
[1733493285840,0.4370624,98690.0,98689.0,0.0001739]
[1733493286088,0.4330624,98690.0,98689.0,0.0001739]
[1733493286351,0.38623358,98690.0,98689.0,0.0001739]
[1733493287460,0.1227,98690.0,98689.0,0.0001739]
[1733493287705,0.043,98690.0,98689.0,0.0001739]
[1733493288377,0.038,98690.0,98689.0,0.0001739]
[1733493288604,0.29429819,98690.0,98689.0,0.0001739]
[1733493288863,0.29703154,98690.0,98689.0,0.0001739]
[1733493289087,0.43525464,98690.0,98689.0,0.0001739]
[1733493289314,0.45425464,98690.0,98689.0,0.0001739]
[1733493289968,0.39143154,98690.0,98689.0,0.0001739]
[1733493290174,0.38343154,98690.0,98689.0,0.0001739]
[1733493290432,0.48823154,98690.0,98689.0,0.0001739]
[1733493290863,0.49123154,98690.0,98689.0,0.0001739]
[1733493291318,0.48823154,98690.0,98689.0,0.0001739]
[1733493291748,0.49223154,98690.0,98689.0,0.0001739]
[1733493291977,0.44223154,98690.0,98689.0,0.0001739]
[1733493292206,0.21843154,98690.0,98689.0,0.0001739]
[1733493292514,0.13903154,98690.0,98689.0,0.0001739]
[1733493292696,0.14829825,98690.0,98689.0,0.0001739]
[1733493293137,0.13903154,98690.0,98689.0,0.0001739]
[1733493293593,0.14703154,98690.0,98689.0,0.0001739]
[1733493293855,0.13903154,98690.0,98689.0,0.0001739]
[1733493294293,0.14203154,98690.0,98689.0,0.0001739]
[1733493294748,0.14603154,98690.0,98689.0,0.0001739]
[1733493294967,0.041,98690.0,98689.0,0.0001739]
[1733493295187,0.0378643,98690.0,98689.0,0.0001739]
[1733493295635,0.0418643,98690.0,98689.0,0.0001739]
[1733493295871,0.0348643,98690.0,98689.0,0.0001739]
[1733493296085,0.0308643,98690.0,98689.0,0.0001739]
[1733493296307,0.0418643,98690.0,98689.0,0.0001739]
[1733493296528,0.0348643,98690.0,98689.0,0.0001739]
[1733493296968,0.0418643,98690.0,98689.0,0.0001739]
[1733493297402,0.0348643,98690.0,98689.0,0.0001739]
[1733493297656,0.0308643,98690.0,98689.0,0.0001739]
[1733493297880,0.0338643,98690.0,98689.0,0.0001739]
[1733493298577,0.0308643,98690.0,98689.0,0.0001739]
[1733493298815,0.34076884,98690.0,98689.0,0.0001739]
[1733493299060,0.29489584,98690.0,98689.0,0.0001739]
[1733493299284,1.78889584,98690.0,98689.0,0.0001739]
[1733493299506,0.29189584,98690.0,98689.0,0.0001739]
[1733493299945,0.28589584,98690.0,98689.0,0.0001739]
[1733493300190,0.29189584,98690.0,98689.0,0.0001739]
[1733493301086,0.29489584,98690.0,98689.0,0.0001739]
[1733493301541,0.29189584,98690.0,98689.0,0.0001739]
[1733493301972,0.29489584,98690.0,98689.0,0.0001739]
[1733493302681,0.32934165,98690.0,98689.0,0.0001739]
[1733493303548,0.29489584,98690.0,98689.0,0.0001739]
[1733493305125,0.14489584,98690.0,98689.0,0.0001739]
[1733493305403,0.0398643,98690.0,98689.0,0.0001739]
[1733493305632,0.0098643,98690.0,98689.0,0.0001739]
[1733493305858,0.0398643,98690.0,98689.0,0.0001739]
[1733493306341,0.0098643,98690.0,98689.0,0.0001739]
[1733493306617,0.0038643,98690.0,98689.0,0.0001739]
[1733493306866,0.0038643,98690.0,98689.0,0.20330544]
[1733493306867,0.0048643,98690.0,98689.0,0.20330544]
[1733493307094,0.0038643,98690.0,98689.0,0.20330544]
[1733493307325,0.0038643,98690.0,98689.0,0.25130544]
[1733493307547,0.0048643,98690.0,98689.0,0.25130544]
[1733493307812,0.0008668,98710.0,98689.0,0.25130544]
[1733493307813,0.0008668,98710.0,98699.0,0.202636]
[1733493308313,0.0008668,98710.0,98699.0,0.30766754]
[1733493308588,0.0008668,98710.0,98709.0,0.202615]
[1733493308812,0.0008668,98710.0,98709.0,0.67944654]
[1733493309103,0.0008668,98710.0,98709.0,0.76871879]
[1733493309327,0.0008668,98710.0,98709.0,1.0089336]
[1733493309558,0.0008668,98710.0,98709.0,0.81324781]
[1733493309786,0.0008668,98710.0,98709.0,0.67944654]
[1733493310249,0.0008668,98710.0,98709.0,0.8220254]
[1733493310477,0.0018668,98710.0,98709.0,0.78336787]
[1733493310700,0.0018668,98710.0,98709.0,0.68822146]
[1733493310701,0.0008668,98710.0,98709.0,0.68822146]
[1733493310922,0.0028668,98710.0,98709.0,0.71903365]
[1733493311188,0.0028668,98710.0,98709.0,0.80818006]
[1733493311429,0.0008657,98720.0,98719.0,0.472195]
[1733493311674,0.0008657,98720.0,98719.0,0.57722654]
[1733493311876,0.0008657,98720.0,98719.0,0.62722654]
[1733493312791,0.00144587,98720.0,98719.0,0.62722654]
[1733493313315,0.00244587,98720.0,98719.0,0.63222654]
[1733493313542,0.00144587,98720.0,98719.0,0.62722654]
[1733493313761,0.00244587,98720.0,98719.0,0.63222654]
[1733493314006,8.7e-07,98720.0,98719.0,0.63222654]
[1733493314275,0.0008652,98730.0,98729.0,0.02]
[1733493314521,0.0008652,98730.0,98729.0,0.50060554]
[1733493315271,0.0008652,98730.0,98727.0,0.202578]
[1733493315480,0.0008652,98730.0,98729.0,0.206574]
[1733493315943,0.0008652,98730.0,98729.0,0.215574]
[1733493316164,0.0008652,98730.0,98729.0,0.206574]
[1733493317114,0.0008652,98730.0,98729.0,0.202574]
[1733493317361,0.0008652,98730.0,98729.0,0.203074]
[1733493318030,0.0008652,98730.0,98729.0,0.21210603]
[1733493318257,0.0008652,98730.0,98729.0,0.01203203]
[1733493318484,0.0008652,98730.0,98729.0,0.00903203]
[1733493318934,0.0008652,98730.0,98727.0,0.202578]
[1733493319421,0.0008652,98730.0,98727.0,0.21134265]
[1733493319644,0.0008652,98730.0,98729.0,0.202574]
[1733493320116,0.0008652,98730.0,98727.0,0.00876465]
[1733493320369,0.03,98728.0,98727.0,0.003]
[1733493320594,0.03,98726.0,98715.0,0.202602]
[1733493321252,0.03,98726.0,98719.0,0.20317417]
[1733493322601,0.032,98726.0,98719.0,0.20317417]
[1733493322821,0.03,98726.0,98723.0,0.202585]
[1733493323049,0.0008652,98730.0,98728.0,0.202575]
[1733493324966,0.0018652,98730.0,98728.0,0.30760654]
[1733493325198,0.0018652,98730.0,98729.0,0.12803154]
[1733493325437,0.03,98758.0,98730.0,0.023]
[1733493325699,0.03,98758.0,98731.0,0.10503154]
[1733493325916,0.03,98758.0,98752.0,0.202527]
[1733493326138,0.03,98758.0,98732.0,0.023]
[1733493326364,0.03,98764.0,98734.0,0.023]
[1733493326596,0.00531968,98766.0,98754.0,0.202523]
[1733493326597,0.03,98758.0,98754.0,0.202523]
[1733493327061,0.004,98758.0,98754.0,0.405046]
[1733493327284,0.03531968,98766.0,98754.0,0.405046]
[1733493327285,0.00350982,98771.0,98759.0,0.202513]
[1733493327511,0.0028659,98760.0,98759.0,0.202513]
[1733493328193,0.0008659,98760.0,98759.0,0.202513]
[1733493328647,0.0048659,98760.0,98759.0,0.202513]
[1733493328863,0.0008659,98760.0,98759.0,0.202513]
[1733493329112,0.0018659,98760.0,98759.0,0.202513]
[1733493329596,0.0008659,98760.0,98759.0,0.202513]
[1733493330065,0.0008659,98760.0,98759.0,0.204513]
[1733493330301,0.250238,98796.0,98759.0,0.204513]
[1733493330302,0.03,98787.0,98784.0,0.202461]
[1733493330541,0.0308654,98790.0,98781.0,0.202468]
[1733493330768,0.03,98786.0,98781.0,0.202468]
[1733493331060,0.03,98786.0,98778.0,0.202472]
[1733493331511,0.03,98786.0,98782.0,0.202465]
[1733493332217,0.033,98786.0,98779.0,0.202471]
[1733493332656,0.036,98786.0,98778.0,0.0001739]
[1733493332908,0.033,98786.0,98778.0,0.0001739]
[1733493333140,0.033,98786.0,98779.0,0.202472]
[1733493333388,0.20246,98785.0,98778.0,0.0001739]
[1733493333880,0.03,98779.0,98778.0,0.0001739]
[1733493334099,0.26446557,98779.0,98778.0,0.0001739]
[1733493334323,0.37385118,98779.0,98778.0,0.0001739]
[1733493334545,0.42325118,98779.0,98778.0,0.0001739]
[1733493334812,0.42325118,98779.0,98750.0,0.00888837]
[1733493334813,0.202501,98765.0,98751.0,0.202529]
[1733493335063,0.03,98770.0,98760.0,0.202509]
[1733493335286,0.03,98770.0,98732.0,0.1006]
[1733493335287,0.00563345,98769.0,98766.0,0.202498]
[1733493335522,0.00563345,98769.0,98750.0,0.00017392]
[1733493335523,0.00563345,98768.0,98763.0,0.202504]
[1733493335745,0.03,98770.0,98763.0,0.202504]
[1733493335746,0.00563345,98767.0,98763.0,0.202504]
[1733493335968,0.00563345,98769.0,98751.0,0.202528]
[1733493336438,0.004,98765.0,98758.0,0.202513]
[1733493336655,0.03,98770.0,98758.0,0.202513]
[1733493336656,0.03,98770.0,98763.0,0.202504]
[1733493336873,0.03563867,98769.0,98763.0,0.202504]
[1733493337107,0.00563867,98768.0,98767.0,0.202495]
[1733493337348,0.00563867,98768.0,98763.0,0.202504]
[1733493337621,0.00563867,98767.0,98763.0,0.405008]
[1733493337847,0.20813818,98766.0,98753.0,0.405048]
[1733493338092,0.20813818,98766.0,98750.0,0.00017392]
[1733493338093,0.00564018,98765.0,98754.0,0.00874779]
[1733493338337,0.00564018,98765.0,98750.0,0.00017392]
[1733493338338,0.03,98762.0,98750.0,0.00017392]
[1733493338602,0.202517,98757.0,98750.0,0.00017392]
[1733493338834,0.232517,98757.0,98750.0,0.00017392]
[1733493339065,0.202525,98753.0,98750.0,0.00017392]
[1733493339314,0.232529,98751.0,98750.0,0.00017392]
[1733493340076,0.202525,98753.0,98750.0,0.00017392]
[1733493340077,0.03,98753.0,98750.0,0.00017392]
[1733493340305,0.001,98762.0,98750.0,0.00017392]
[1733493340306,0.03,98757.0,98750.0,0.00017392]
[1733493340556,0.202515,98758.0,98750.0,0.00017392]
[1733493340557,0.03,98753.0,98750.0,0.00017392]
[1733493340781,0.232529,98751.0,98750.0,0.00017392]
[1733493341030,0.232529,98751.0,98750.0,0.00117392]
[1733493341776,0.232529,98751.0,98750.0,0.00217392]
[1733493342264,0.23605605,98751.0,98750.0,0.00417392]
[1733493342502,0.23605605,98751.0,98750.0,0.00017392]
[1733493342745,0.23905605,98751.0,98750.0,0.00017392]
[1733493343200,0.00652705,98751.0,98750.0,0.00017392]
[1733493343425,0.03651687,98751.0,98750.0,0.00017392]
[1733493345371,0.00651687,98751.0,98750.0,0.00017392]
[1733493345836,0.01214374,98751.0,98750.0,0.00017392]
[1733493347177,0.01040954,98751.0,98750.0,0.00017392]
[1733493347419,0.01340954,98751.0,98750.0,0.00017392]
[1733493347862,0.01240954,98751.0,98750.0,0.00017392]
[1733493348084,0.00478267,98751.0,98750.0,0.00017392]
[1733493348314,0.03578267,98751.0,98750.0,0.00017392]
[1733493348556,0.03778267,98751.0,98750.0,0.00017392]
[1733493348819,0.03678267,98751.0,98750.0,0.00017392]
[1733493349044,0.03778267,98751.0,98750.0,0.00017392]
[1733493353100,0.03778267,98751.0,98750.0,1.00017392]
[1733493353316,0.00651687,98751.0,98750.0,1.00017392]
[1733493353548,0.03651687,98751.0,98750.0,1.00017392]
[1733493354001,0.00651015,98751.0,98750.0,1.00017392]
[1733493354219,0.01212639,98751.0,98750.0,1.00017392]
[1733493355156,0.04212639,98751.0,98750.0,1.00190092]
[1733493355421,0.03551015,98751.0,98750.0,1.00190092]
[1733493356570,0.03351015,98751.0,98750.0,1.00190092]
[1733493356797,0.03551015,98751.0,98750.0,1.00190092]
[1733493357024,0.03451015,98751.0,98750.0,1.00190092]
[1733493357256,0.03351015,98751.0,98750.0,1.00190092]
[1733493357482,0.03651015,98751.0,98750.0,1.00190092]
[1733493357707,0.03451015,98751.0,98750.0,1.00190092]
[1733493358358,0.03551015,98751.0,98750.0,1.00190092]
[1733493358785,0.00451015,98751.0,98750.0,1.00190092]
[1733493359508,0.0101274,98751.0,98750.0,1.00190092]
[1733493359753,0.00351015,98751.0,98750.0,1.00190092]
[1733493360199,0.00451015,98751.0,98750.0,1.00190092]
[1733493360421,0.00551015,98751.0,98750.0,1.00190092]
[1733493360660,0.00451015,98751.0,98750.0,1.00190092]
[1733493360880,0.00551015,98751.0,98750.0,1.00190092]
[1733493361106,0.00651015,98751.0,98750.0,1.00190092]
[1733493361615,0.00651015,98751.0,98750.0,1.30946346]
[1733493361875,0.0483654,98790.0,98750.0,1.30946346]
[1733493361876,0.03,98787.0,98759.0,0.202513]
[1733493362095,0.00561787,98789.0,98759.0,0.30754454]
[1733493362307,0.0008654,98790.0,98759.0,0.30754454]
[1733493362308,0.00561787,98786.0,98759.0,0.33501194]
[1733493362531,0.0308654,98790.0,98759.0,0.41531194]
[1733493362532,0.00561787,98785.0,98759.0,0.41531194]
[1733493362744,0.00913196,98784.0,98759.0,0.50662344]
[1733493363003,0.00351409,98783.0,98759.0,0.50662344]
[1733493363507,0.00351371,98782.0,98759.0,0.61752718]